fUSD/lending_fUSD_20260309
["ID","MTS","AMOUNT","RATE_DAILY","PERIOD"]
[408033098,1773058242748,-150.0,0.0001999,2]
[408033099,1773058242763,-150.0,0.0001999,2]
[408033100,1773058242778,-150.186,0.0001999,2]
[408033101,1773058242792,-150.0,0.0001999,2]
[408033102,1773058242807,-1342.0,0.0001999,2]
[408033103,1773058242822,-1042.0,0.0001999,2]
[408033105,1773058242835,-619.0,0.0001999,2]
[408033107,1773058242849,-3505.0,0.0001999,2]
[408033110,1773058242864,-1279.0,0.0001999,2]
[408033113,1773058242878,-173.739302,0.0001999,2]
[408033115,1773058242893,-39853.3216962,0.00019994,2]
[408033118,1773058242908,-9995.810794,0.00019994,2]
[408033120,1773058242921,-91767.5085876,0.00019994,2]
[408033123,1773058242935,-151.0,0.00019994,2]
[408033125,1773058242949,-151.0,0.00019994,2]
[408033128,1773058242963,-157.795172,0.00019994,2]
[408033131,1773058242977,-500.0,0.00019997,2]
[408033133,1773058242992,-150.0,0.00019999,2]
[408033136,1773058243006,-33181.70399474,0.00019999,2]
[408033141,1773058243021,-500.0,0.00019999,2]
[408033143,1773058243036,-3000.0,0.00019999,2]
[408033144,1773058243050,-551.0100217,0.00019999,2]
[408033145,1773058243064,-528.3101508,0.00019999,2]
[408033146,1773058243083,-500.0,0.00019999,2]
[408033147,1773058243098,-500.0,0.00019999,2]
[408033148,1773058243112,-500.0,0.00019999,2]
[408033149,1773058243130,-500.0,0.00019999,2]
[408033150,1773058243145,-530.42631764,0.00019999,2]
[408033151,1773058243161,-439.49768677,0.00019999,2]
[408033152,1773058243175,-170.17616328,0.00019999,2]
[408033153,1773058243190,-160.53387614,0.00019999,2]
[408033154,1773058243206,-2975.0,0.0002,2]
[408033155,1773058243221,-292963.64318527,0.0002,2]
[408033156,1773058243624,-502.36887877,0.0002,2]
[408033157,1773058243869,-3504.29951051,0.00018849,2]
[408033158,1773058243878,-5994.0,0.00019722,2]
[408033159,1773058243887,-1035317.98301553,0.0002,2]
[408033160,1773058243898,-1750.58550399,0.0002,2]
[408033161,1773058243909,-2997.93284972,0.0002,2]
[408033162,1773058243941,-33302.46516381,0.0002,2]
[408033163,1773058244976,-4976.42433161,0.0001901,2]
[408033170,1773058245472,-8691.44242518,0.0001901,2]
[408033171,1773058245482,-3504.29951051,0.00019059,2]
[408033172,1773058245491,-18729.41395863,0.0002,2]
[408033173,1773058245510,-1038.0,0.0002,2]
[408033174,1773058245526,-1498.2,0.0002,2]
[408033175,1773058256456,250.0,0.00015,2]
[408033176,1773058312492,-513.0,0.00017,2]
[408033177,1773058312514,-500.0,0.00018356,7]
[408033178,1773058312535,-500.0,0.00018528,2]
[408033179,1773058312556,-500.0,0.00018528,2]
[408033180,1773058312576,-500.0,0.00018528,2]
[408033181,1773058312598,-200.0,0.00018759,2]
[408033182,1773058312620,-513.0,0.00018853,3]
[408033183,1773058312642,-500.0,0.00018953,2]
[408033184,1773058312664,-500.0,0.00018953,2]
[408033185,1773058312685,-501.66559118,0.00018973,2]
[408033186,1773058312706,-300.0,0.0001912,2]
[408033187,1773058312726,-13667.86675679,0.00019121,2]
[408033188,1773058312746,-7466.3738654,0.0001918,2]
[408033189,1773058312766,-13667.86675679,0.00019233,2]
[408033190,1773058312788,-3504.29951051,0.0001927,2]
[408033191,1773058312809,-9040.92751933,0.00019344,2]
[408033192,1773058383223,10000.0,0.00016888,2]
[408033193,1773058392686,5000.01,0.00016888,2]
[408033194,1773058392708,4999.99,0.00016888,2]
[408033195,1773058401294,0.02,0.00016888,2]
[408033196,1773058401314,5000.01,0.00016888,2]
[408033197,1773058401335,4999.97,0.00016888,2]
[408033198,1773058409904,0.04,0.00016888,2]
[408033199,1773058409930,5000.01,0.00016888,2]
[408033200,1773058409955,4999.95,0.00016888,2]
[408033201,1773058417811,0.06,0.00016888,2]
[408033202,1773058417849,5000.01,0.00016888,2]
[408033203,1773058417884,4999.93,0.00016888,2]
[408033204,1773058421611,0.08,0.00015471,2]
[408033205,1773058421646,416.05,0.00015471,2]
[408033206,1773058425751,2608.73010882,0.00016888,2]
[408033207,1773058436126,-833.0,0.00016888,2]
[408033208,1773058443893,515.72,0.00015471,2]
[408033209,1773058449935,151.29,0.00014,2]
[408033210,1773058450640,151.29,0.0001595,2]
[408033211,1773058536851,335.0,0.00016888,2]
[408033213,1773058676387,150.04,8.702e-05,2]
[408033214,1773058676558,150.04,9.427e-05,2]
[408033215,1773058676771,150.04,0.00010152,2]
[408033216,1773058676981,150.04,0.00010877,2]
[408033217,1773058677207,150.04,0.00011603,2]
[408033218,1773058677459,150.04,0.00012328,2]
[408033219,1773058677665,150.04,0.00013053,2]
[408033220,1773058677883,150.04,0.00013778,2]
[408033221,1773058678079,150.04,0.00014503,2]
[408033222,1773058678337,150.04,0.00015228,2]
[408033223,1773058678540,150.04,0.00015953,2]
[408033224,1773058678760,150.04,0.00016679,2]
[408033225,1773058722178,854.01927127,0.0002,120]
[408033227,1773058931066,380.23,0.00016888,2]
[408033228,1773058931103,119.77,0.00016888,2]
[408033229,1773058931672,500.0,0.00016888,2]
[408033230,1773058932321,500.0,0.00016888,2]
[408033231,1773058932887,500.0,0.00016888,2]
[408033232,1773058933495,500.0,0.00016888,2]
[408033233,1773058934111,500.0,0.00016888,2]
[408033234,1773058935098,500.0,0.00016888,2]
[408033235,1773058935292,500.0,0.00016888,2]
[408033236,1773058935421,500.0,0.00015,30]
[408033237,1773058935462,561.0,0.00015,30]
[408033238,1773058935871,319.24,0.00016888,2]
[408033239,1773058935891,180.76,0.00016888,2]
[408033240,1773058935917,500.0,0.00011888,2]
[408033241,1773058936536,500.0,0.00016888,2]
[408033242,1773058937129,500.0,0.00016888,2]
[408033243,1773058937945,500.0,0.00016888,2]
[408033244,1773058938568,500.0,0.00016888,2]
[408033245,1773058939180,500.0,0.00016888,2]
[408033246,1773058940757,500.0,0.00016888,2]
[408033247,1773058940826,500.0,0.00015,30]
[408033248,1773058940904,500.0,0.00016888,2]
[408033249,1773058940929,319.25,0.00015,30]
[408033250,1773058940951,180.75,0.00015,30]
[408033251,1773058941384,840.83695784,0.00011888,2]
[408033252,1773058941536,500.0,0.00016888,2]
[408033253,1773058941992,200.0,0.00016888,2]
[408033254,1773058942147,500.0,0.00016888,2]
[408033255,1773058942319,500.0,0.00015,30]
[408033256,1773058942759,500.0,0.00015,30]
[408033257,1773058942788,500.0,0.00016888,2]
[408033258,1773058943234,596.29210205,0.00011888,2]
[408033259,1773058943425,500.0,0.00016888,2]
[408033260,1773058944031,182.13094011,0.00016888,2]
[408033261,1773058944052,317.86905989,0.00016888,2]
[408033262,1773058944657,500.0,0.00016888,2]
[408033263,1773058944836,500.0,0.00015,30]
[408033264,1773058945318,702.17775379,0.00015,30]
[408033265,1773058945352,500.0,0.00015,30]
[408033266,1773058945386,500.0,0.00011888,2]
[408033267,1773058945812,500.0,0.00011888,2]
[408033268,1773058951764,-500.0,0.00015,30]
[408033269,1773058951790,-151.0,0.00016888,2]
[408033270,1773058951815,-151.0,0.00016888,2]
[408033271,1773058951842,-151.0,0.00016888,2]
[408033272,1773058951867,-151.0,0.00016888,2]
[408033273,1773058951893,-151.0,0.00016888,2]
[408033274,1773058951918,-151.0,0.00016888,2]
[408033275,1773058951943,-151.0,0.00016888,2]
[408033276,1773058951969,-151.0,0.00016888,2]
[408033277,1773058951995,-151.0,0.00016888,2]
[408033278,1773058952022,-167.0,0.00016888,2]
[408033279,1773058952047,-162.0,0.00016888,2]
[408033280,1773058952072,-154.0,0.00016888,2]
[408033281,1773058952836,151.0,0.00016888,2]
[408033282,1773058952936,151.0,0.00016888,2]
[408033283,1773058954055,14.01,0.00016888,2]
[408033284,1773058954076,136.99,0.00016888,2]
[408033285,1773058954656,151.0,0.00016888,2]
[408033286,1773058955344,293.6087821,0.00016888,2]
[408033287,1773059020200,166.99,0.00016712,2]
[408033288,1773059107353,168.0,0.00016888,2]
[408033289,1773059120543,176.69177669,0.00016791,2]
[408033290,1773059156520,166.66,0.00016102,2]
[408033291,1773059156804,166.66,0.00016441,2]
[408033292,1773059157031,166.66,0.0001678,2]
[408033293,1773059235720,500.0,0.00015,30]
[408033294,1773059236188,500.0,0.00015,30]
[408033295,1773059236308,500.0,0.00015,30]
[408033296,1773059236658,500.0,0.00011888,2]
[408033297,1773059236763,500.0,0.00015,30]
[408033298,1773059236911,500.0,0.00015,30]
[408033299,1773059237161,500.0,0.00011888,2]
[408033300,1773059237216,500.0,0.00015,30]
[408033301,1773059237400,155.33822331,0.00015,30]
[408033302,1773059237423,344.66177669,0.00015,30]
[408033303,1773059237707,500.0,0.00015,30]
[408033304,1773059237863,698.73765731,0.00011888,2]
[408033305,1773059238169,500.0,0.00011888,2]
[408033306,1773059238629,500.0,0.00011888,2]
[408033307,1773059239114,975.24401555,0.00011888,2]
[408033308,1773059239802,500.0,0.00015,30]
[408033309,1773059239927,500.0,0.00015,30]
[408033310,1773059240441,481.36655045,0.00015,30]
[408033311,1773059241271,-18.63344955,0.00015,30]
[408033312,1773059241298,-500.0,0.00015,30]
[408033313,1773059241432,500.0,0.00015,30]
[408033314,1773059241921,500.0,0.00015,30]
[408033315,1773059242398,500.0,0.00011888,2]
[408033316,1773059243694,500.0,0.00011888,2]
[408033317,1773059243799,500.0,0.00011888,2]
[408033318,1773059243861,500.0,0.00015,30]
[408033319,1773059243923,649.77654712,0.00011888,2]
[408033320,1773059244287,312.96655378,0.00011888,2]
[408033321,1773059244310,187.03344622,0.00011888,2]
[408033322,1773059253101,-500.0,0.00011888,2]
[408033323,1773059253130,-500.0,0.00011888,2]
[408033324,1773059253161,-500.0,0.00011888,2]
[408033325,1773059253190,-616.99604029,0.00011888,2]
[408033326,1773059268176,-200.0,0.000131,2]
[408033330,1773059423553,-159.35,0.00014,2]
[408033333,1773059431475,-483.07450817,0.0001453,2]
[408033334,1773059431484,-150.0,0.0001453,2]
[408033335,1773059431496,-150.0,0.0001453,30]
[408033336,1773059431506,-176.69177669,0.00014899,2]
[408033337,1773059431515,-300.0,0.00014999,2]
[408033338,1773059431525,-366.76963513,0.00014999,2]
[408033339,1773059431537,-833.23036487,0.00014999,2]
[408033340,1773059431547,-277.0,0.00014999,2]
[408033341,1773059431556,-500.0,0.00015,30]
[408033342,1773059431566,-500.0,0.00015,30]
[408033343,1773059431576,-500.0,0.00015,30]
[408033344,1773059431586,-500.0,0.00015,30]
[408033345,1773059431596,-500.0,0.00015,30]
[408033346,1773059431605,-500.0,0.00015,30]
[408033347,1773059431615,-159.35,0.0001595,2]
[408033348,1773059431624,-180.20408328,0.00016,2]
[408033349,1773059431633,-420.0,0.00016416,2]
[408033350,1773059431642,-1762.31,0.00016639,2]
[408033351,1773059431652,-1552.28,0.00016659,2]
[408033352,1773059431662,-500.0,0.00016783,2]
[408033353,1773059431671,-1000.0,0.00016888,2]
[408033354,1773059431680,-1000.0,0.00016888,2]
[408033355,1773059431689,-846.19889546,0.00016888,2]
[408033356,1773059431699,-600.0,0.00016891,2]
[408033357,1773059431708,-250.0,0.00016892,2]
[408033358,1773059431718,-195.0,0.00016895,2]
[408033359,1773059431731,-2500.0,0.00016895,2]
[408033360,1773059431740,-500.0,0.000169,2]
[408033361,1773059431750,-222.40395506,0.00016902,2]
[408033362,1773059431760,-550.0,0.00016903,2]
[408033363,1773059431770,-500.0,0.00016904,2]
[408033364,1773059431779,-200.0,0.00016904,2]
[408033365,1773059431789,-151.0,0.00016904,2]
[408033366,1773059431798,-151.0,0.00016904,2]
[408033367,1773059431807,-151.0,0.00016904,2]
[408033368,1773059431816,-151.0,0.00016904,2]
[408033369,1773059431826,-151.0,0.00016904,2]
[408033370,1773059431835,-151.0,0.00016904,2]
[408033371,1773059431845,-151.0,0.00016904,2]
[408033372,1773059431855,-151.0,0.00016904,2]
[408033373,1773059431865,-151.0,0.00016904,2]
[408033374,1773059431874,-151.0,0.00016904,2]
[408033375,1773059431884,-151.0,0.00016904,2]
[408033376,1773059431894,-1500.0,0.00016914,2]
[408033377,1773059431904,-195.0,0.00016914,2]
[408033378,1773059431913,-2500.0,0.00016914,2]
[408033379,1773059431924,-2500.0,0.00016914,2]
[408033380,1773059431934,-1044.11,0.00016953,2]
[408033381,1773059431943,-1908.87,0.00016987,2]
[408033382,1773059431954,-259.55,0.00016994,2]
[408033383,1773059431964,-513.0,0.00017,2]
[408033384,1773059431974,-166.66,0.00017119,2]
[408033385,1773059431984,-228.42,0.00017323,2]
[408033386,1773059431994,-500.0,0.00017351,2]
[408033387,1773059432004,-1397.96,0.00017397,2]
[408033388,1773059432013,-150.04,0.00017404,2]
[408033389,1773059432023,-1908.87,0.00017412,2]
[408033390,1773059432033,-150.0,0.0001743,2]
[408033391,1773059432042,-834.24,0.0001743,2]
[408033392,1773059432052,-200.0,0.00017452,2]
[408033393,1773059432062,-166.66,0.00017458,2]
[408033394,1773059432071,-198.62387425,0.00017458,2]
[408033395,1773059432081,-198.62387425,0.00017558,2]
[408033396,1773059432090,-438.35148103,0.00017573,2]
[408033397,1773059432100,-198.62387425,0.00017658,2]
[408033398,1773059432109,-1744.0,0.00017679,2]
[408033399,1773059432119,-14002.38367743,0.00017697,2]
[408033400,1773059432131,-15117.11522377,0.00017697,2]
[408033401,1773059432142,-1351.14592439,0.00017697,2]
[408033402,1773059432153,-1283.74605043,0.00017697,2]
[408033403,1773059432165,-419.3,0.00017697,2]
[408033404,1773059432181,-380.0,0.00017697,2]
[408033405,1773059432193,-732.5,0.00017697,2]
[408033406,1773059432217,-1555.25933657,0.00017697,2]
[408033409,1773059437686,-16730.87148741,0.00017697,2]
[408033410,1773059437696,-551.0,0.00017715,2]
[408033411,1773059437705,-1121.0,0.00017725,2]
[408033412,1773059437716,-1466.68502504,0.00017773,2]
[408033413,1773059437726,-610.12074509,0.00017773,2]
[408033414,1773059437735,-166.66,0.00017797,2]
[408033415,1773059437745,-505.36254135,0.00017798,2]
[408033416,1773059437754,-1908.87,0.00017836,2]
[408033417,1773059437764,-624.95346812,0.000179,2]
[408033418,1773059437773,-257.43869025,0.000179,2]
[408033419,1773059437783,-257.43869023,0.000179,2]
[408033420,1773059437793,-257.43869023,0.000179,2]
[408033421,1773059437802,-257.43869023,0.000179,2]
[408033422,1773059437811,-256.321821,0.000179,2]
[408033423,1773059437821,-256.321821,0.000179,2]
[408033424,1773059437830,-512.643642,0.000179,2]
[408033425,1773059437840,-159.35,0.000179,2]
[408033426,1773059437849,-624.95346809,0.00017936,2]
[408033427,1773059437859,-172.84,0.00017955,2]
[408033428,1773059437868,-587.0,0.00017966,2]
[408033429,1773059437877,-205.33524266,0.00018,2]
[408033430,1773059437887,-935.0,0.00018002,2]
[408033431,1773059437898,-270.0,0.00018043,2]
[408033432,1773059437907,-624.95346809,0.00018071,2]
[408033434,1773059437917,-624.95346809,0.00018207,2]
[408033436,1773059437926,-1908.87,0.00018261,2]
[408033438,1773059437935,-2190.18719413,0.00018309,2]
[408033440,1773059437944,-153.04150344,0.00018309,2]
[408033442,1773059437954,-6909.01692796,0.00018309,2]
[408033444,1773059437963,-9590.40533692,0.00018309,2]
[408033446,1773059437972,-700.0,0.00018356,7]
[408033448,1773059437981,-800.0,0.00018356,7]
[408033450,1773059437990,-500.0,0.00018356,7]
[408033452,1773059438000,-151.0,0.00018404,2]
[408033454,1773059438009,-500.0,0.00018406,2]
[408033456,1773059438019,-500.0,0.00018406,2]
[408033458,1773059438028,-500.0,0.00018406,2]
[408033460,1773059438037,-500.0,0.00018406,2]
[408033462,1773059438046,-500.0,0.00018406,2]
[408033463,1773059438055,-500.0,0.00018406,2]
[408033464,1773059438064,-500.0,0.00018406,2]
[408033465,1773059438074,-500.0,0.00018406,2]
[408033466,1773059438083,-500.0,0.00018406,2]
[408033467,1773059438092,-500.0,0.00018406,2]
[408033468,1773059438101,-500.0,0.00018406,2]
[408033469,1773059438110,-500.0,0.00018406,2]
[408033470,1773059438120,-500.0,0.00018406,2]
[408033471,1773059438129,-500.0,0.00018406,2]
[408033472,1773059438138,-500.0,0.00018406,2]
[408033473,1773059438147,-500.0,0.00018406,2]
[408033474,1773059438156,-500.0,0.00018406,2]
[408033475,1773059438166,-506.82131153,0.00018406,2]
[408033476,1773059438175,-502.32320781,0.00018406,2]
[408033477,1773059438184,-500.0,0.00018406,2]
[408033478,1773059438193,-500.0,0.00018406,2]
[408033479,1773059438202,-500.0,0.00018406,2]
[408033480,1773059438212,-500.0,0.00018406,2]
[408033481,1773059438222,-500.0,0.00018406,2]
[408033482,1773059438232,-500.0,0.00018406,2]
[408033483,1773059438241,-500.0,0.00018406,2]
[408033484,1773059438250,-500.0,0.00018406,2]
[408033485,1773059438260,-500.0,0.00018406,2]
[408033486,1773059438269,-500.0,0.00018406,2]
[408033487,1773059438279,-197.20403817,0.00018406,2]
[408033488,1773059438288,-500.0,0.00018406,2]
[408033489,1773059438298,-500.0,0.00018406,2]
[408033490,1773059438308,-500.0,0.00018406,2]
[408033491,1773059438317,-500.0,0.00018406,2]
[408033492,1773059438327,-500.0,0.00018406,2]
[408033493,1773059438336,-500.0,0.00018406,2]
[408033494,1773059438345,-500.0,0.00018406,2]
[408033495,1773059438354,-500.0,0.00018406,2]
[408033496,1773059438364,-500.0,0.00018406,2]
[408033497,1773059438374,-500.0,0.00018406,2]
[408033498,1773059438383,-500.0,0.00018406,2]
[408033499,1773059438393,-500.0,0.00018406,2]
[408033500,1773059438403,-500.0,0.00018406,2]
[408033501,1773059438413,-500.0,0.00018406,2]
[408033502,1773059438424,-500.0,0.00018406,2]
[408033503,1773059438434,-500.0,0.00018406,2]
[408033504,1773059438444,-500.0,0.00018406,2]
[408033505,1773059438454,-500.0,0.00018406,2]
[408033506,1773059438469,-500.0,0.00018406,2]
[408033507,1773059438479,-500.0,0.00018406,2]
[408033508,1773059438683,-500.0,0.00018406,2]
[408033509,1773059438744,-500.0,0.00018406,2]
[408033510,1773059438754,-500.0,0.00018406,2]
[408033511,1773059438763,-500.0,0.00018406,2]
[408033512,1773059438772,-500.0,0.00018406,2]
[408033513,1773059438781,-500.0,0.00018406,2]
[408033514,1773059438790,-500.0,0.00018406,2]
[408033515,1773059438799,-500.0,0.00018406,2]
[408033516,1773059438810,-500.0,0.00018406,2]
[408033517,1773059438819,-500.0,0.00018406,2]
[408033518,1773059438828,-500.0,0.00018406,2]
[408033519,1773059438837,-500.0,0.00018406,2]
[408033520,1773059438847,-500.0,0.00018406,2]
[408033521,1773059438856,-500.0,0.00018406,2]
[408033522,1773059438865,-500.0,0.00018406,2]
[408033523,1773059438875,-500.0,0.00018406,2]
[408033524,1773059438884,-500.0,0.00018406,2]
[408033525,1773059438893,-500.0,0.00018406,2]
[408033526,1773059438902,-500.0,0.00018406,2]
[408033527,1773059438911,-500.0,0.00018406,2]
[408033528,1773059438920,-15194.37281408,0.00018409,2]
[408033529,1773059438929,-500.38903851,0.00018473,2]
[408033530,1773059438939,-500.42637662,0.00018473,2]
[408033531,1773059438947,-500.0,0.00018473,2]
[408033532,1773059438957,-500.0,0.00018473,2]
[408033533,1773059438968,-500.0,0.00018473,2]
[408033534,1773059438977,-502.1202599,0.00018473,2]
[408033535,1773059438987,-500.23838819,0.00018473,2]
[408033536,1773059438997,-292.0,0.00018481,2]
[408033537,1773059439006,-6909.01692795,0.00018486,2]
[408033538,1773059439015,-9590.40533685,0.00018486,2]
[408033539,1773059439025,-500.0,0.00018528,2]
[408033540,1773059439034,-500.0,0.00018528,2]
[408033541,1773059439044,-500.0,0.00018528,2]
[408033542,1773059439054,-500.0,0.00018528,2]
[408033543,1773059439064,-500.0,0.00018528,2]
[408033544,1773059439074,-500.0,0.00018528,2]
[408033545,1773059439085,-500.0,0.00018528,2]
[408033546,1773059439095,-500.0,0.00018528,2]
[408033547,1773059439105,-500.0,0.00018528,2]
[408033548,1773059439115,-500.0,0.00018528,2]
[408033549,1773059439125,-500.0,0.00018528,2]
[408033550,1773059439135,-501.07,0.00018528,2]
[408033551,1773059439145,-2190.18719406,0.00018536,2]
[408033552,1773059439154,-151.0,0.00018574,2]
[408033553,1773059439163,-2500.0,0.00018578,2]
[408033554,1773059439172,-195.0,0.00018578,2]
[408033555,1773059439181,-2500.0,0.00018578,2]
[408033556,1773059439191,-250.0,0.00018578,2]
[408033557,1773059439201,-194.24944797,0.00018578,2]
[408033558,1773059439210,-200.0,0.00018578,2]
[408033559,1773059439219,-217.46711665,0.00018578,2]
[408033560,1773059439228,-600.0,0.00018578,2]
[408033561,1773059439238,-1600.0,0.00018596,2]
[408033562,1773059439247,-462.86860977,0.00018654,2]
[408033563,1773059439256,-6909.01692795,0.00018663,2]
[408033564,1773059439265,-9590.40533685,0.00018663,2]
[408033565,1773059439274,-1908.87,0.00018686,2]
[408033566,1773059439284,-900.0,0.00018721,2]
[408033567,1773059439293,-353.6,0.00018721,2]
[408033568,1773059439303,-2190.18719406,0.00018764,2]
[408033569,1773059439312,-255.08807614,0.000188,2]
[408033570,1773059439322,-1400.0,0.000188,6]
[408033571,1773059439332,-501.07,0.00018802,2]
[408033572,1773059439341,-358.61,0.00018835,2]
[408033573,1773059439351,-353.6,0.00018837,2]
[408033574,1773059439360,-6909.01692795,0.00018839,2]
[408033575,1773059439370,-9590.40533685,0.00018839,2]
[408033576,1773059439379,-2800.0,0.000189,6]
[408033577,1773059439388,-500.0,0.00018953,2]
[408033578,1773059439398,-353.6,0.00018954,2]
[408033579,1773059439407,-513.0,0.00018969,3]
[408033580,1773059439418,-323.77109867,0.00018973,2]
[408033581,1773059439431,-500.0,0.00018973,2]
[408033582,1773059439442,-500.0,0.00018973,2]
[408033583,1773059439451,-500.0,0.00018973,2]
[408033584,1773059439467,-500.0,0.00018973,2]
[408033585,1773059439476,-500.0,0.00018973,2]
[408033586,1773059439485,-505.41983925,0.00018973,2]
[408033587,1773059439495,-232.08,0.00018989,2]
[408033588,1773059439504,-232.08,0.00018989,2]
[408033589,1773059439513,-2190.18719406,0.00018991,2]
[408033590,1773059439523,-8000.0,0.00018999,2]
[408033591,1773059439531,-721.12765535,0.00018999,2]
[408033592,1773059439540,-250.0,0.00018999,2]
[408033593,1773059439549,-500.0,0.00018999,2]
[408033594,1773059439558,-8000.0,0.00018999,2]
[408033595,1773059439567,-1428.38747117,0.00018999,2]
[408033596,1773059439576,-250.0,0.00018999,2]
[408033597,1773059439585,-8000.0,0.00018999,2]
[408033598,1773059439594,-250.0,0.00018999,2]
[408033599,1773059439603,-8000.0,0.00018999,2]
[408033600,1773059439611,-250.0,0.00018999,2]
[408033601,1773059439621,-8000.0,0.00018999,2]
[408033602,1773059439630,-250.0,0.00018999,2]
[408033603,1773059439639,-500.0,0.00018999,2]
[408033604,1773059439648,-1500.0,0.00018999,2]
[408033605,1773059439657,-1500.0,0.00018999,2]
[408033606,1773059439666,-3224.75890656,0.00018999,2]
[408033607,1773059439676,-250.0,0.00018999,2]
[408033608,1773059439685,-500.0,0.00018999,2]
[408033609,1773059439694,-1500.0,0.00018999,2]
[408033611,1773059439703,-1500.0,0.00018999,2]
[408033612,1773059439713,-250.0,0.00018999,2]
[408033613,1773059439722,-500.0,0.00018999,2]
[408033614,1773059439731,-1500.0,0.00018999,2]
[408033615,1773059439740,-1500.0,0.00018999,2]
[408033617,1773059439749,-250.0,0.00018999,2]
[408033619,1773059439758,-500.0,0.00018999,2]
[408033621,1773059439767,-1500.0,0.00018999,2]
[408033622,1773059439776,-1500.0,0.00018999,2]
[408033623,1773059439784,-250.0,0.00018999,2]
[408033624,1773059439793,-1500.0,0.00018999,2]
[408033625,1773059439802,-500.0,0.00018999,2]
[408033626,1773059439811,-1500.0,0.00018999,2]
[408033627,1773059439821,-250.0,0.00018999,2]
[408033628,1773059439830,-1500.0,0.00018999,2]
[408033629,1773059439839,-500.0,0.00018999,2]
[408033630,1773059439848,-1500.0,0.00018999,2]
[408033631,1773059439857,-250.0,0.00018999,2]
[408033632,1773059439867,-1500.0,0.00018999,2]
[408033633,1773059439876,-500.0,0.00018999,2]
[408033634,1773059439885,-1500.0,0.00018999,2]
[408033635,1773059439893,-1500.0,0.00018999,2]
[408033636,1773059439903,-1500.0,0.00018999,2]
[408033637,1773059439912,-1500.0,0.00018999,2]
[408033638,1773059439922,-1500.0,0.00018999,2]
[408033639,1773059439931,-702.42664319,0.00018999,2]
[408033640,1773059439940,-1500.0,0.00018999,2]
[408033641,1773059439949,-1500.0,0.00018999,2]
[408033642,1773059439970,-3000.0,0.00018999,2]
[408033643,1773059439988,-500.0,0.00018999,2]
[408033644,1773059440006,-3000.0,0.00018999,2]
[408033645,1773059440026,-500.0,0.00018999,2]
[408033646,1773059440040,-3000.0,0.00018999,2]
[408033647,1773059440059,-250.0,0.00018999,2]
[408033648,1773059440078,-207.44998627,0.00018999,2]
[408033649,1773059440099,-3000.0,0.00018999,2]
[408033650,1773059440118,-500.0,0.00018999,2]
[408033651,1773059440135,-250.0,0.00018999,2]
[408033652,1773059440153,-3000.0,0.00018999,2]
[408033653,1773059440166,-500.0,0.00018999,2]
[408033654,1773059440185,-250.0,0.00018999,2]
[408033655,1773059440197,-3000.0,0.00018999,2]
[408033656,1773059440217,-250.0,0.00018999,2]